Cogmind - Beta 14 @@@ ROGUE MODE // 2024.09.18 @ 13:18:18 Player: Kinga Result: Self-destructed Performance ------------- Evolutions (1) 500 Regions Visited (2) 400 Robots Destroyed (26) 130 Value Destroyed (673) 673 Prototype IDs (1) 20 Alien Tech Used (0) 0 Bonus (0) 0 TOTAL SCORE: 1723 Bonus ------- None Cogmind --------- Core Integrity 352/400 Matter 300/300 Energy 99/125 System Corruption 0% Temperature Critical (515) Movement Treading (160) Location -9/Materials Parts ------- > --- POWER (1) -------- Light Ion Engine > --- PROPULSION (2) --- Light Treads > --- UTILITY (4) ------ Small Storage Unit Targeting Computer Medium Armor Plating > --- WEAPON (2) ------- Particle Gun > --- INVENTORY (8) ---- Compact Wheel Particle Gun Particle Gun Particle Gun Particle Gun Particle Gun Shock Bomb Launcher Shock Bomb Launcher Peak State ------------ > --- POWER ------------ Light Ion Engine > --- PROPULSION ------- Light Treads Light Treads > --- UTILITY ---------- Small Storage Unit Targeting Computer Medium Armor Plating Hacking Suite > --- WEAPON ----------- Particle Gun Improved Medium Laser > --- INVENTORY -------- Compact Wheel Particle Gun Particle Gun Particle Gun Particle Gun Particle Gun Shock Bomb Launcher Shock Bomb Launcher [Rating: 16] Favorites ----------- Power Light Ion Engine Engine Light Ion Engine Propulsion Light Treads Treads Light Treads Wheel Compact Wheel Utility Small Storage Unit Storage Small Storage Unit Processor Targeting Computer Hackware Hacking Suite Protection Power Shielding Weapon Light Assault Rifle Energy Gun Particle Gun Ballistic Gun Light Assault Rifle Build | -11 -10 -9 ------- Run | Yrd Mat Mat Slots Evolved 2 | . . 2 Power . | . . . Propulsion . | . . . Utility 2 | . . 2 Weapon . | . . . Parts Attached 24 | 6 11 7 Power 2 | 1 1 . Engine 2 | 1 1 . Core . | . . . Reactor . | . . . Propulsion 6 | 2 4 . Treads 4 | 2 2 . Leg . | . . . Wheel 2 | . 2 . Hover . | . . . Flight . | . . . Utility 8 | 1 3 4 Device . | . . . Storage 1 | 1 . . Processor 1 | . 1 . Hackware 1 | . . 1 Protection 5 | . 2 3 Artifact . | . . . Weapon 8 | 2 3 3 Energy Gun 6 | . 3 3 Energy Cannon . | . . . Ballistic Gun 2 | 2 . . Ballistic Cannon . | . . . Launcher . | . . . Special Weapon . | . . . Impact Weapon . | . . . Slashing Weapon . | . . . Piercing Weapon . | . . . Special Melee Weapon . | . . . Unidentified Prototypes 1 | . . 1 Parts Lost 11 | . 9 2 Power 1 | . 1 . Propulsion 4 | . 3 1 Utility 3 | . 2 1 Weapon 3 | . 3 . Highest Loss Streak 9 | . 9 1 To Critical Strikes . | . . . Average Slot Usage (%) 94 | . 91 98 Engine 12 | . 13 11 Treads 22 | . 23 22 Wheel 1 | . 2 . Storage 12 | . 14 11 Processor 6 | . 3 11 Hackware 4 | . . 10 Protection 8 | . 6 10 Energy Gun 13 | . 5 22 Ballistic Gun 10 | . 20 . Peak Build Rating 16 | 6 7 16 Average Rating 9 | 4 6 14 On Entrance 4 | . 6 7 Naked Turns . | . . . Heaviest Build 21 | 10 13 21 Greatest Support 40 | 40 40 40 Greatest Overweight (x) . | . . . Average Overweight (x) . | . . . Largest Inventory Capacity 8 | 8 8 8 Average Capacity 7 | 6 8 8 Most Carried 8 | 4 6 8 Average Carried 5 | 2 3 7 Final Capacity 8 | 8 8 8 Final Carried 8 | 4 2 8 Class Distribution -------------------- 89% | Mutant 10% | Scavenger-Mutant Dominant Class ---------------- Mutant | -10/Materials Mutant | -9/Materials Resources | -11 -10 -9 ----------- Run | Yrd Mat Mat Matter Collected 570 | 221 228 121 Remotely . | . . . Salvage Created 846 | . 515 331 Parts 53 | . 32 21 Haulers Intercepted 1 | . 1 . Recyclers Shooed 1 | . . 1 Parts Field Recycled . | . . . Retrieved Matter . | . . . Parts Self-Destructed . | . . . Prevented . | . . . Kills | -11 -10 -9 ------- Run | Yrd Mat Mat Combat Hostiles Destroyed 19 | . 12 7 Guns 19 | . 12 7 Classes Destroyed 8 | . 5 3 Worker 1 | . . 1 Tunneler 1 | . 1 . Hauler 1 | . 1 . Operator 2 | . 2 . Watcher 2 | . . 2 Swarmer 4 | . 3 1 Grunt 13 | . 9 4 Duelist 2 | . . 2 Best Kill Streak 5 | . 4 5 Combat Bots Only 3 | . 3 3 Max Kills in Single Turn 1 | . 1 1 Gunslinging . | . . . Exploded . | . . . Melee . | . . . Uniques/NPCs Destroyed . | . . . Combat | -11 -10 -9 -------- Run | Yrd Mat Mat Hostile Shots Fired 161 | . 119 42 Missed 36 | . 30 6 Damage Taken 1383 | . 1047 336 Core 254 | . 206 48 Absorbed by Shields . | . . . Core Remaining (%) 58 | 100 17 . Volleys Fired 103 | . 80 23 Largest 2 | . 2 2 Hottest 121 | . 80 121 Shots Fired 189 | . 144 45 Gun 189 | . 144 45 Cannon . | . . . Launcher . | . . . Special . | . . . Kinetic 119 | . 119 . Thermal 62 | . 17 45 Explosive . | . . . Electromagnetic 8 | . 8 . Robot Hit Streak 12 | . 10 12 Robot Miss Streak 6 | . 4 6 Penetration Max . | . . . Secondary Targets 3 | . 2 1 Max Gunslinging Chain 1 | . 1 1 Shots Hit Robots 116 | . 91 25 Core Hits 48 | . 34 14 Critical Kills . | . . . Critical Parts Destroyed . | . . . Critical Strikes 1 | . . 1 Burn 1 | . . 1 Melee Attacks . | . . . Impact . | . . . Slashing . | . . . Piercing . | . . . Sneak Attacks . | . . . Combat Hostiles . | . . . Follow-up Attacks . | . . . Damage Inflicted 1304 | . 861 443 Guns 1257 | . 822 435 Cannons . | . . . Explosions 35 | . 35 . Melee . | . . . Ramming 12 | . 4 8 Kinetic 593 | . 593 . Thermal 619 | . 184 435 Explosive . | . . . Electromagnetic 80 | . 80 . Impact . | . . . Slashing . | . . . Piercing . | . . . Highest Corruption . | . . . Average Corruption . | . . . Corruption Purged . | . . . Corruption Blocked . | . . . Overload Shots . | . . . Overflow Damage . | . . . Projectiles . | . . . Explosions . | . . . Melee . | . . . Knockbacks . | . . . Impact . | . . . Kinetic . | . . . Secondary . | . . . Self-Inflicted Damage . | . . . Shots . | . . . Rammed 2 | . 1 1 Targets Rammed 2 | . 1 1 Kicked . | . . . Crushed . | . . . Highest Temperature 547 | . 172 547 Average Temperature 92 | . 47 177 Received Heat Transfer 630 | . 564 66 Effects 10 | . . 10 Shutdowns 2 | . . 2 Energy Bleed 2 | . . 2 Interference 1 | . . 1 Matter Decay 1 | . . 1 Short Circuit 1 | . . 1 Damage (major) 3 | . . 3 Siege Activations . | . . . Robots Corrupted . | . . . Combat Hostiles . | . . . Parts Fried . | . . . Impact Corruptions . | . . . Robots Melted . | . . . Combat Hostiles . | . . . Parts Melted 1 | . . 1 Heat Transferred 1399 | . 350 1049 Parts Sabotaged . | . . . Parts Stolen . | . . . Parts Stripped . | . . . Power Chain Reactions 1 | . 1 . Alert | -11 -10 -9 ------- Run | Yrd Mat Mat Peak Influence 270 | . 270 184 Initial 42 | . . 42 Average 80 | . 97 72 Maximum Alert Level 1 | . 1 . Low Security (%) 90 | 100 81 100 Level 1 9 | . 18 . Level 2 . | . . . Level 3 . | . . . Level 4 . | . . . Level 5 . | . . . High Security . | . . . Max Security . | . . . Squads Dispatched 4 | . 3 1 Investigation 1 | . 1 . Extermination . | . . . Reinforcement 3 | . 2 1 Assault . | . . . Garrison . | . . . Intercept . | . . . Searches Triggered . | . . . Construction Impeded . | . . . Haulers Reinforced . | . . . Active Scanning Responses . | . . . Cargo Convoy Interrupts . | . . . Stealth | -11 -10 -9 --------- Run | Yrd Mat Mat Distress Signals 4 | . 3 1 Communications Jammed . | . . . Distress Signals . | . . . Times Spotted 39 | . 24 15 Peak Tracking Total 6 | . 6 5 Tactical Retreats 1 | . 1 . Traps | -11 -10 -9 ------- Run | Yrd Mat Mat Traps Triggered 2 | . 2 . Indirectly . | . . . Trap Hack Attempts . | . . . Triggered . | . . . Disarmed . | . . . Reprogrammed . | . . . Reused . | . . . Traps Extracted . | . . . Installed . | . . . Triggered . | . . . Machines | -11 -10 -9 ---------- Run | Yrd Mat Mat Machines Disabled 1 | . . 1 Max in Single Turn 1 | . . 1 Machines Repaired . | . . . Machines Dismantled . | . . . Machines Sabotaged . | . . . Overloaded Fab Kills . | . . . Hacking | -11 -10 -9 --------- Run | Yrd Mat Mat Machines Accessed 4 | . 2 2 Terminals 4 | . 2 2 Fabricators . | . . . Repair Stations . | . . . Recycling Units . | . . . Scanalyzers . | . . . Garrison Access . | . . . Total Hacks 12 | . 7 5 Successful 3 | . 1 2 Failed 9 | . 6 3 Catastrophic 1 | . 1 . Database Lockouts . | . . . Manual 6 | . 1 5 Terminals 12 | . 7 5 Fabricators . | . . . Repair Stations . | . . . Recycling Units . | . . . Scanalyzers . | . . . Garrison Access . | . . . Terminal Hacks 3 | . 1 2 Terminal Index 1 | . . 1 Alert Level 1 | . 1 . Hauler Manifests 1 | . . 1 Fabricator Hacks . | . . . Repair Station Hacks . | . . . Recycling Unit Hacks . | . . . Scanalyzer . | . . . Garrison Access Hacks . | . . . Unauthorized Hacks . | . . . Terminals . | . . . Fabricators . | . . . Repair Stations . | . . . Recycling Units . | . . . Scanalyzers . | . . . Garrison Access . | . . . Data Cores Recovered . | . . . Used . | . . . Hacking Detections 4 | . 2 2 Full Trace Events . | . . . Feedback Events . | . . . Feedback Blocked . | . . . Robot Schematics Acquired . | . . . Robots Built . | . . . Authchips . | . . . Time . | . . . Total Robot Build Rating . | . . . Part Schematics Acquired . | . . . Parts Built . | . . . Authchips . | . . . Time . | . . . Total Part Build Rating . | . . . Parts Repaired . | . . . Time . | . . . Parts Recycled . | . . . Recycled Matter . | . . . Retrieved Matter . | . . . Retrieved Components . | . . . Parts Scanalyzed . | . . . Part Schematics Acquired . | . . . Parts Damaged . | . . . Bothacking | -11 -10 -9 ------------ Run | Yrd Mat Mat Used RIF Installer . | . . . Robots Hacked . | . . . Non-combat . | . . . Combat . | . . . Robot Hacks Applied . | . . . Relay Couplers Released . | . . . Fabnet Peak Effective % . | . . . Robots Rewired . | . . . Allies Hacked . | . . . Hacks Repelled . | . . . Allies | -11 -10 -9 -------- Run | Yrd Mat Mat Total Allies . | . . . Largest Group . | . . . Highest-Rated Group . | . . . Highest-Rated Ally . | . . . Total Orders . | . . . Ally Attacks . | . . . Total Damage . | . . . Kills . | . . . Allies Corrupted . | . . . Allies Melted . | . . . Intel | -11 -10 -9 ------- Run | Yrd Mat Mat Robot Analysis Total . | . . . Derelict Logs Recovered . | . . . Drone Launches . | . . . Drone Recoveries . | . . . Exploration | -11 -10 -9 ------------- Run | Yrd Mat Mat Turns Passed 1143 | 75 554 514 Spaces Moved 519 | 44 210 265 Core 7 | 7 . . Treads 490 | 37 188 265 Legs . | . . . Wheels 22 | . 22 . Hover . | . . . Flight . | . . . Fastest Speed 50 | 50 100 160 Average Speed 155 | 142 153 160 Slowest Speed 160 | 160 160 160 Overloaded Moves . | . . . Propulsion Burnouts . | . . . Robots Hopped . | . . . Cave-ins Triggered . | . . . Exploration Rate (%) 25 | 4 48 25 Regions Visited 2 Branch Regions . Pre-discovered Areas . | . . . Known Exits Taken . | . . . Unknown Exits Taken 2 | 1 1 . Scrap Searched . | . . . Spaces Dug . | . . . Terrain Destroyed 4 | . 4 . Melee . | . . . Projectile . | . . . AOE 4 | . 4 . Terrain Rammed . | . . . Walls Destroyed . | . . . Machines Disabled . | . . . Actions | -11 -10 -9 --------- Run | Yrd Mat Mat Total 681 | 53 319 309 Wait 15 | . 14 1 Move 517 | 43 209 265 Hop . | . . . Pick Up 13 | 4 3 6 Fast Attach 15 | 6 5 4 Attach 7 | . 6 1 Detach 2 | . 1 1 Swap 2 | . . 2 Drop 5 | . . 5 Fire 103 | . 80 23 Melee . | . . . Ram . | . . . Kick . | . . . Crush 2 | . 1 1 Escape Stasis . | . . . Rewire . | . . . Trap . | . . . Miscellaneous . | . . . Route ------- -11/Scrapyard -10/Materials (discovered 2 exits: *Mat / [*Min]) -9/Materials (discovered 1 exit: [*Min]) History --------- Turn | Location | Event 9 | -11/Scrapyard | Discovered new exit (range 14) 76 | -11/Scrapyard | Entered Materials 139 | -10/Materials | Discovered new exit (range 14) 312 | -10/Materials | Build established: Mutant 457 | -10/Materials | Discovered new exit (range 13) 482 | -10/Materials | Core integrity fell below 50% 533 | -10/Materials | Core integrity fell below 20% 548 | -10/Materials | Lost 9 parts (1p3n2u3w) 630 | -10/Materials | Entered another Materials area 630 | -9/Materials | Evolved 2 slots: Utility x2 763 | -9/Materials | Discovered new exit (range 8) 1144 | -9/Materials | Self-destructed Last Messages --------------- 01128_ Power failure, Lgt. Ion Engine shutdown. 01128_ K-01 Serf collects debris. 01134_ Destroyed Flight Unit. 01135_ K-01 Serf collects debris. 01137_ S-10 Pest destroyed. 01137_ Switching to secondary target: S-10 Pest. 01140_ Imp. Medium Laser broken. 01140_ Overheating: Short circuit. 01140_ K-01 Serf collects debris. 01141_ Overheating: Energy bleed (-25). 01142_ Overheating: Energy bleed (-17). 01142_ Dropped Broken Imp. Medium Laser. 01143_ Overheating: Targeting Computer damaged (-6). 01143_ Overheating: Lgt. Treads damaged (-6). 01143_ Overheating: Lgt. Treads damaged (-9). 01143_ K-01 Serf collects debris. 01144_ Power failure, Lgt. Ion Engine shutdown. 01144_ Overheating: System interference. 01144_ Targeting Computer temporarily disabled. 01144_ Lgt. Treads destroyed. Map ----- +----------------------------------------------------+ | ?????????????????????????????????????????????????? | | ?????????????????????????????????????????????????? | | ?????????????????????????????????????????????????? | | ?????????????????????????????????????????????????? | | ?????????????????????????????????????????????????? | | ?????????????????????????????????????????????????? | | ?????????????????????????????????????????????????? | | ???????????????????????????????????????##########? | | ???????????????????????????????????????# #? | | ???????????????????????????????????????# # | | ???????????????????????????????????????# + | | ???????????????????????????????????????# #? | | ???????????????????????????????????????# #? | | ???????????????????????????????????????# #? | | ?????????????##????????????????????????# #? | | ????????????? ???????????????????????#! +? | | ???????????? ??????????????????????# #? | | ???????????? ?????????????????????#+########? | | ????????????? ????????????????????#"#???????? | | ?????????????? ???????##########?##%######## | | ??????????????""" ######## ### " | | ??????????????""" g #!!""" + % | | ?????????? """ #[=""" ######## #### | | ????????? s [ w/!!""" #??#####+#### | | ????????? s *%= k !#%!%* #??# =! # | | ??????????????# [@ # %""" #??# % "" # | | ??????????????############ # """ #??# *""S # | | ?????????????????????????# # """ #??# "" # | | ?????????????????????????# # #??# # | | ?????????????????????????# ##########??# # | | ?????????????????????????#+#???????????#!!! # | | ???????????????????????????????????????#!!! # | | ???????????????????????????????????????#!!! # | | ??????????????????????????????????????#######+### | | ??????????????????????????????????????# | | ??????????????????????????????????????# | | ??????????????????????????????????????#+## | | ?????????????????????????????????????????# ##### | | ?????????????????????????????????????????# #???# | | ?????????????????????????????????????????# #???# | | ?????????????????????????????????????????+ #???# | | ?????????????????????????????????????????# #???# | | ?????????????????????????????????????????# #???# | | ?????????????????????????????????????????# #???# | | ?????????????????????????????????????????# #???# | | ?????????????????????????????????????????# #???? | | ?????????????????????????????????????????# #???? | | ?????????????????????????????????????????# #???? | | ?????????????????????????????????????????# #???? | | ?????????????????????????????????????????# ##### | +----------------------------------------------------+ Best States ------------- Heat Dissipation 28 Energy Generation 10 Energy Capacity 125 Matter Stores 300 Matter Capacity 300 Sight Range 16 Terrain Scan Density 10 Armor Coverage 225 Core Shielding 20 Power Shielding 33 Evasion (%) 40 Targeting Accuracy 5 Recoil Reduction 2 Offensive Hacking 10 Item Schematics ----------------- None Robot Schematics ------------------ None Fabricated ------------ Nothing Alien Tech Used ----------------- None Achievements -------------- None Challenges ------------ None Game ------ Seed ProtonGaussAutobeam Manual? 0 Play Time 00:09:49 Cumulative 80.3 hours Start 2024.09.18 @ 13:11:16 End 2024.09.18 @ 13:18:18 Sessions 1 Manual Loads 0 Difficulty Rogue Special Mode None Game No. 91 Rogue 87 Adventurer 0 Explorer 4 Win Type - Total 5 Types 3/0/0/2/0/0/0/0/0 Lore% 27 Gallery% 59 Achievement% 54 Wizard Run 0 Options --------- Layout 0 ASCII 0 Keyboard 0 Movement Numpad Keybinds 0 Fullscreen 2 Font 18/SmallcapsGlow Map View 76x50 Zoom Use 0% Tactical HUD 1 Map Filters NONE Filters NONE Steam 1 RUN: 31a3e4a8-1249-4aef-82cf-3ed49bc4e97c